[Event "41st Zalakaros Festival 2022"]
[Site "Zalakaros"]
[Date "2022.06.13"]
[Round "9.7"]
[White "Ianov, Viktor"]
[Black "Forgacs, Attila Jr."]
[Result "1/2-1/2"]
[ECO "A05"]
[WhiteElo "2279"]
[BlackElo "2234"]
[Annotator "TA"]
[PlyCount "82"]
[EventDate "2022.06.05"]
[EventType "swiss"]
[EventCountry "HUN"]
[SourceTitle "playchess.com"]
[Source "ChessBase"]
[SourceQuality "1"]
[TimeControl "40/5400+30:1800+30"]

{[%evp 14,82,54,53,71,70,101,100,77,82,110,87,77,89,78,67,74,69,81,70,72,25,88,47,62,0,0,-74,-96,-97,-87,-189,-190,-162,-160,-238,-224,-464,-444,-351,-387,-726,-710,-649,-461,-460,-430,-564,-304,-304,-304,-291,-286,-483,-415,-439,0,0,0,0,0,0,0,0,0,0,0,0,0,0,0]} 1. Nf3 {[%emt 0:00:31]} Nf6 {[%emt 0:00:37]} 2. g3 {[%emt 0:00:09]} g6 {[%emt 0:00:02]} 3. b3 {[%emt 0:00:08]} Bg7 {[%emt 0:00:03]} 4. Bb2 {[%emt 0:00:08]} O-O {[%emt 0:00:05]} 5. Bg2 {[%emt 0:00:07]} d6 {[%emt 0:00:05]} 6. d4 {[%emt 0:00:08]} e5 {[%emt 0:00:07]} 7. dxe5 {[%emt 0:00:09]} Nfd7 {[%emt 0:00:06]} 8. Nc3 {[%emt 0:00:07]} dxe5 {[%emt 0:00:14][%cal Oe5e4] 8...Nxe5 is vanishing. A49: 1 d4 Nf6 2 Nf3 g6 3 g3: Anti-King's Indian systems.} 9. Qd2 {[%emt 0:00:08]} Nc6 {[%emt 0:00:10][%cal Oe5e4]} 10. O-O-O {[%emt 0:00:10]} a5 {[%emt 0:00:06][%cal Oa5a4] White is better.} 11. h4 {[%emt 0:00:09]} h6 {[%emt 0:00:05][%cal Oa5a4] Prevents Qg5.} 12. g4 {[%emt 0:01:35][%cal Bg3g4,Bg4g5][%mdl 32]} a4 {[%emt 0:02:39]} 13. Nxa4 {[%emt 0:01:28]} Qe7 {[%emt 0:04:37][%cal Oa8a4] [#]} 14. g5 $146 {[%emt 0:00:53]} ({Predecessor:} 14. Kb1 Rd8 15. Qc1 b5 16. Nc3 Qb4 17. Nxe5 Ncxe5 18. Bxa8 c6 19. Qe3 Nxg4 20. Qg3 {1-0 (28) Radjabov,T (2325)-Zhao,Z Oropesa del Mar 1998}) 14... h5 {[%emt 0:03:19][%cal Oa8a4]} 15. Qe3 {[%emt 0:01:05]} Nb6 {[%emt 0:14:00]} 16. Nxb6 cxb6 {[%emt 0:00:15]} 17. Kb1 {[%emt 0:10:16]} (17. Qxb6 e4 18. Nd4 (18. Bxg7 $2 Kxg7 19. a4 exf3 $19) 18... Ra6 19. Qxa6 bxa6 20. Nxc6 Qe6 21. Bxg7 Kxg7 $17) ({White should play} 17. a4 $16) 17... Qc7 {[%emt 0:07:24]} (17... Bf5 $11 18. Bh3 (18. Qxb6 Rxa2 19. Kxa2 Bxc2 $17) 18... Rxa2 19. Bxf5 (19. Kxa2 $2 {too greedy.} Bxc2 20. Bc3 Ra8+ 21. Kb2 Bxd1 $19) 19... Rfa8) 18. Qc3 {[%emt 0:02:02] White is more active.} b5 {[%emt 0:01:33]} 19. b4 {[%emt 0:09:39]} (19. Ne1 $1 $14) 19... Qb6 $11 {[%emt 0:07:02]} 20. e3 {[%emt 0:00:43]} (20. Qc5 $11 Qxc5 21. bxc5) 20... Bf5 $1 $17 {[%emt 0:05:22]} 21. Ne1 {[%emt 0:03:51]} Rfc8 $1 {[%emt 0:01:19][%cal Oc6d4]} 22. Qb3 {[%emt 0:05:44] [#]} (22. Rd5 $17) 22... e4 $1 $19 {[%emt 0:14:43] Hoping for ...Be6.} 23. Bxg7 {[%emt 0:01:56]} Kxg7 {[%emt 0:00:16]} 24. Qb2+ {[%emt 0:00:16]} (24. a3 $17) 24... Kg8 {[%emt 0:00:58]} 25. Bh3 $2 {[%emt 0:01:14]} (25. a3) 25... Bxh3 {[%emt 0:01:21]} 26. Rxh3 {[%emt 0:00:08][%cal Bh1h3,Bh3f3,Bf3f6,Bf6f2,Bf2e2][%mdl 32]} Ra4 {[%emt 0:02:21]} 27. c3 {[%emt 0:03:21]} (27. a3 Qa6 28. Rd4 Nxd4 29. exd4) 27... Rca8 {[%emt 0:03:26] Strongly threatening ...Qa6.} 28. f4 {[%emt 0:00:29]} exf3 {[%emt 0:10:36]} 29. Rxf3 {[%emt 0:00:38]} Ne5 {[%emt 0:00:33][%mdl 64] Deflection} 30. Rf6 {[%emt 0:01:31]} Qa7 {[%emt 0:01:22]} 31. Rf2 {[%emt 0:05:39]} Qxe3 {[%emt 0:02:04] Threatens to win with ...Nc4.} 32. Re2 {[%emt 0:01:13]} Qf4 {[%emt 0:00:55]} 33. Qd2 {[%emt 0:00:47] [#]} (33. Qc1 Qf5+ 34. Ka1) 33... Qf5+ $1 {[%emt 0:05:41]} 34. Qc2 {[%emt 0:02:23] Black must now prevent Qxf5.} Qf4 {[%emt 0:06:32]} (34... Qe6 $19 35. Rc1 Rxa2 36. Qxa2 Rxa2 37. Rxa2 Qg4) 35. Rd4 {[%emt 0:03:38] The position is equal.} Qg3 {[%emt 0:01:10]} 36. Qe4 $1 $36 {[%emt 0:02:39][%csl LRb7,LRe5][%mdl 2048] White has some pressure.} Nc4 {[%emt 0:00:50]} 37. Qd3 {[%emt 0:01:30]} Qc7 {[%emt 0:04:11]} 38. Rd7 {[%emt 0:01:55]} Qf4 {[%emt 0:00:20]} 39. Rd4 {[%emt 0:01:50]} Na3+ {[%emt 0:00:39]} 40. Kb2 {[%emt 0:00:00]} Nc4+ {[%emt 0:00:00]} 41. Kb1 {[%emt 0:00:49]} Na3+ {[%emt 0:04:17] And White is the lucky defender.  Weighted Error Value: White=0.41/Black=0.28 (precise)} 1/2-1/2

[Event "41st Zalakaros Festival 2022"]
[Site "Zalakaros"]
[Date "2022.06.13"]
[Round "9.8"]
[White "Demeter, Dorina"]
[Black "Daroczi, Donat"]
[Result "1/2-1/2"]
[ECO "A04"]
[WhiteElo "2235"]
[BlackElo "2132"]
[Annotator "NA RC"]
[PlyCount "111"]
[EventDate "2022.06.05"]
[EventType "swiss"]
[EventCountry "HUN"]
[SourceTitle "playchess.com"]
[Source "ChessBase"]
[SourceQuality "1"]
[TimeControl "40/5400+30:1800+30"]

{[%evp 15,81,32,22,50,35,0,0,-38,0,-4,-7,0,0,-14,-10,-14,0,0,23,31,46,46,73,57,77,45,48,38,32767,18,32767,-25,-16,-17,32767,-27,-13,-15,0,0,-7,-3,22,0,12,0,0,0,0,0,16,20,29,0,0,0,32767,32767,32767,32767,32767,91,72,64,50,83,70,0]} 1. Nf3 {[%emt 0:00:48]} e6 {[%emt 0:00:41]} 2. c4 {[%emt 0:00:23]} b6 {[%emt 0:00:26]} 3. g3 {[%emt 0:00:10]} Bb7 {[%emt 0:00:05]} 4. Bg2 {[%emt 0:00:04]} f5 {[%emt 0:00:06]} 5. Nc3 {[%emt 0:03:37]} Nf6 {[%emt 0:00:12]} 6. d3 {[%emt 0:00:21]} Bb4 {[%emt 0:00:56]} 7. Bd2 {[%emt 0:04:20]} O-O {[%emt 0:00:33]} 8. O-O {[%emt 0:04:37]} a5 {[%emt 0:04:44]} 9. Qc2 {[%emt 0:02:47]} d6 {[%emt 0:03:00]} 10. Rfe1 {[%emt 0:10:16]} e5 {[%emt 0:14:31]} 11. e4 {[%emt 0:03:04]} (11. b3 $11 {deserves consideration.}) 11... Bxc3 {[%emt 0:03:52]} 12. Bxc3 {[%emt 0:00:21]} fxe4 {[%emt 0:02:26]} 13. dxe4 {[%emt 0:01:17]} Nbd7 {[%emt 0:02:00]} 14. Nh4 {[%emt 0:08:44]} Nc5 {[%emt 0:09:26]} 15. Rad1 {[%emt 0:09:40]} Qe8 {[%emt 0:03:57]} 16. f3 {[%emt 0:01:02]} Rd8 {[%emt 0:06:53]} 17. Nf5 {[%emt 0:03:30]} g6 {[%emt 0:05:18]} 18. Ne3 {[%emt 0:00:11]} Ne6 {[%emt 0:05:06]} (18... Rf7 $14) 19. Nd5 {[%emt 0:03:16]} Nd7 {[%emt 0:02:17]} 20. Rf1 {[%emt 0:06:41]} c6 {[%emt 0:08:19]} 21. Ne3 {[%emt 0:00:16]} Qe7 {[%emt 0:02:28]} 22. h4 {[%emt 0:03:14]} c5 {[%emt 0:01:07]} 23. Bh3 {[%emt 0:09:01]} (23. Rde1 {deserves consideration.}) 23... Nd4 {[%emt 0:00:47]} 24. Qg2 {[%emt 0:02:52]} Nf6 {[%emt 0:02:37]} 25. Rd2 {[%emt 0:05:20]} a4 {[%emt 0:02:08]} 26. Rdf2 {[%emt 0:01:21]} Nh5 {[%emt 0:02:08]} 27. Bd2 {[%emt 0:03:53]} Rb8 {[%emt 0:02:44]} 28. Nd5 {[%emt 0:02:16]} Bxd5 {[%emt 0:00:39]} 29. cxd5 {[%emt 0:00:25]} b5 {[%emt 0:00:55]} 30. Bh6 {[%emt 0:04:16]} Rfe8 $1 {[%emt 0:02:18]} 31. Bg5 {[%emt 0:01:12]} Qg7 $1 {[%emt 0:00:02]} 32. Be3 {[%emt 0:00:48]} Rb7 {[%emt 0:08:41]} 33. Bxd4 {[%emt 0:00:12]} cxd4 {[%emt 0:00:01]} 34. Be6+ {[%emt 0:00:01]} Kh8 {[%emt 0:00:21]} 35. f4 exf4 {[%emt 0:04:48]} 36. gxf4 {[%emt 0:00:11]} Qf6 {[%emt 0:01:11]} 37. f5 {[%emt 0:02:23]} Qxh4 {[%emt 0:00:35]} 38. fxg6 {[%emt 0:01:09]} hxg6 {[%emt 0:00:37]} (38... Qg3 $2 39. Qxg3 Nxg3 40. g7+ Kxg7 41. Rg2 $18) 39. Qxg6 {[%emt 0:00:32]} Qg3+ {[%emt 0:00:12] [#]} 40. Qxg3 $1 {[%emt 0:00:00]} ({Much worse is} 40. Rg2 Qxg6 41. Rxg6 Rg7 42. Rxg7 Kxg7 $11) 40... Nxg3 {[%emt 0:00:00]} 41. Rd1 $11 {[%emt 0:17:09]} ({White should play} 41. Rf8+ $16 Rxf8 42. Rxf8+ Kh7 43. Rf3 Ne2+ 44. Kf2) 41... Nxe4 {[%emt 0:04:16]} 42. Rh2+ {[%emt 0:06:53]} Rh7 {[%emt 0:02:58]} 43. Rxd4 {[%emt 0:02:15]} Ng5 {[%emt 0:11:26]} 44. Rxh7+ {[%emt 0:01:16]} Kxh7 {[%emt 0:00:01]} 45. Rb4 {[%emt 0:00:25]} Nxe6 {[%emt 0:01:08]} 46. dxe6 {[%emt 0:00:26]} Rxe6 {[%emt 0:00:03]} 47. Rxb5 {[%emt 0:00:07]} Re2 {[%emt 0:00:24]} 48. Rb4 {[%emt 0:00:28]} Kg6 {[%emt 0:00:23]} 49. Rxa4 {[%emt 0:00:10]} Rxb2 {[%emt 0:00:07]} 50. Rd4 {[%emt 0:00:16]} Rxa2 {[%emt 0:00:23]} 51. Rxd6+ {[%emt 0:00:05]} Kf5 {[%emt 0:00:04]} 52. Rd8 {[%emt 0:00:14]} Ke4 {[%emt 0:00:07]} 53. Re8+ {[%emt 0:00:09]} Kf3 {[%emt 0:00:06]} 54. Rf8+ {[%emt 0:00:02]} Ke4 {[%emt 0:00:05]} 55. Rf2 {[%emt 0:00:06]} Rxf2 {[%emt 0:00:07]} 56. Kxf2 {[%emt 0:00:03]} 1/2-1/2

[Event "41st Zalakaros Festival 2022"]
[Site "Zalakaros"]
[Date "2022.06.13"]
[Round "9.9"]
[White "Kiss, Mate Jozsef"]
[Black "Bodrogi, Bendeguz"]
[Result "1/2-1/2"]
[ECO "B32"]
[WhiteElo "2030"]
[BlackElo "2198"]
[Annotator "TA"]
[PlyCount "41"]
[EventDate "2022.06.05"]
[EventType "swiss"]
[EventCountry "HUN"]
[SourceTitle "playchess.com"]
[Source "ChessBase"]
[SourceQuality "1"]
[TimeControl "40/5400+30:1800+30"]

{[%evp 13,41,27,33,21,33,34,26,34,29,22,29,17,29,0,27,21,32,0,0,0,0,-4,22,0,0,-1,31,0,1,0]} 1. e4 {[%emt 0:00:34]} c5 {[%emt 0:00:45]} 2. Nf3 {[%emt 0:00:07][%cal Bg1f3,Bf3d4,Bd4b5,Bb5a3][%mdl 32]} Nc6 {[%emt 0:00:05]} 3. d4 {[%emt 0:00:07]} cxd4 {[%emt 0:00:07]} 4. Nxd4 {[%emt 0:00:04]} e5 {[%emt 0:00:08]} 5. Nb5 {[%emt 0:00:16]} d6 {[%emt 0:00:06]} 6. N1c3 {[%emt 0:00:08]} a6 {[%emt 0:00:05]} 7. Na3 {[%emt 0:00:09]} Be7 {[%emt 0:00:07]} 8. Be3 {[%emt 0:00:22] B32: Sicilian: Löwenthal and Kalashnikov Variations.} Nf6 {[%emt 0:00:13]} 9. Nc4 {[%emt 0:00:28]} b5 {[%emt 0:00:08]} 10. Nb6 {[%emt 0:00:11] White has an edge.} Rb8 {[%emt 0:00:05]} 11. Nxc8 {[%emt 0:00:06]} Qxc8 {[%emt 0:00:07]} 12. Be2 {[%emt 0:00:27]} O-O {[%emt 0:11:07]} 13. O-O {[%emt 0:00:20]} Rd8 {[%emt 0:03:53]} (13... b4 $5 {[%cal Rb4c3]} 14. Nd5 Nxe4 $11) 14. a3 {[%emt 0:00:35]} Qe6 {[%emt 0:03:47] [#]} 15. Nd5 $146 {[%emt 0:20:28]} ({Predecessor:} 15. Bf3 Na5 16. b3 Rdc8 17. Qd2 Nb7 18. Bg5 Nc5 19. Bxf6 Bxf6 20. Nd5 Bd8 21. Rfd1 {1-0 (50) Packroff,H (2188)-Haemmerle,D (2147) ICCF email 2018}) 15... Nxe4 {[%emt 0:10:16]} 16. c4 {[%emt 0:00:33]} Rdc8 {[%emt 0:18:01]} 17. Nb6 {[%emt 0:01:16]} Rc7 {[%emt 0:02:07]} 18. Nd5 {[%emt 0:04:41][%mdl 1024] White has compensation.} Rcc8 {[%emt 0:09:29]} 19. Nb6 {[%emt 0:00:32]} Rc7 {[%emt 0:00:21]} 20. Nd5 {[%emt 0:00:08]} Rcc8 {[%emt 0:00:09]} 21. Nb6 {[%emt 0:00:05] Weighted Error Value: White=0.10 (very precise) /Black=0.07 (flawless)} 1/2-1/2

[Event "41st Zalakaros Festival 2022"]
[Site "Zalakaros"]
[Date "2022.06.13"]
[Round "9.10"]
[White "Bernath, Bence"]
[Black "Herczeg, Marcell"]
[Result "1-0"]
[ECO "B48"]
[WhiteElo "2202"]
[BlackElo "2045"]
[Annotator "TA"]
[PlyCount "83"]
[EventDate "2022.06.05"]
[EventType "swiss"]
[EventCountry "HUN"]
[SourceTitle "playchess.com"]
[Source "ChessBase"]
[SourceQuality "1"]
[TimeControl "40/5400+30:1800+30"]

{[%evp 14,83,21,34,23,0,10,-35,0,0,0,0,0,0,0,0,72,58,63,71,56,66,112,117,112,98,93,82,82,85,93,81,110,102,85,75,179,155,193,202,233,236,486,475,420,391,376,366,358,99,124,32,136,122,114,141,172,146,520,495,559,362,347,343,511,559,29977,29978,29982,29983,29983,29983]} 1. e4 {[%emt 0:00:40]} c5 {[%emt 0:01:06]} 2. Nf3 {[%emt 0:00:25]} e6 {[%emt 0:00:45]} 3. d4 {[%emt 0:00:37]} cxd4 {[%emt 0:00:26]} 4. Nxd4 {[%emt 0:00:12]} Nc6 {[%emt 0:00:54]} 5. Nc3 {[%emt 0:00:41]} Qc7 {[%emt 0:01:24]} 6. Be3 {[%emt 0:00:31]} a6 {[%emt 0:01:05]} 7. a3 {[%emt 0:00:27] 7.g4 is setting a new trend.} Nf6 {[%emt 0:05:02]} 8. f4 {[%emt 0:01:03]} d5 {[%emt 0:14:58] B48: Sicilian: Taimanov: 5 Nc3 Qc7 6 Be3 a6 without Be2.} 9. exd5 {[%emt 0:10:15]} (9. e5 $5 {[%cal Re5f6]} Nd7 10. Nb3 $11) 9... exd5 {[%emt 0:01:51] [#]} 10. Qf3 $146 {[%emt 0:00:18]} ({Predecessor:} 10. Qd2 Bd6 11. Be2 O-O 12. O-O Re8 13. Rad1 Nxd4 14. Bxd4 Ne4 15. Nxd5 Qc6 16. Qa5 {½-½ (60) Tasdogen,D (2215)-Unat,C (2006) Kocaeli 2017}) 10... Bd6 {[%emt 0:04:11] Threatens to win with ...Bg4. Black is slightly better.} 11. Nxd5 {[%emt 0:04:08]} Nxd5 {[%emt 0:00:44][%mdl 64] [#] Remove Defender} (11... Qa5+ 12. Nc3 Bg4 13. Nxc6 Qxc3+ 14. bxc3 $14) 12. Qxd5 {[%emt 0:00:03]} O-O {[%emt 0:02:07]} 13. Nxc6 {[%emt 0:11:35]} bxc6 {[%emt 0:00:25]} 14. Qd2 {[%emt 0:00:28]} Bg4 {[%emt 0:14:33]} (14... Rd8 $11 {remains equal.}) 15. Bd3 {[%emt 0:02:03]} c5 {[%emt 0:09:04] aiming for ...Rfe8.} 16. h3 {[%emt 0:12:08]} Be6 {[%emt 0:21:35]} 17. O-O {[%emt 0:05:31]} f6 {[%emt 0:01:56]} (17... c4 $14 {feels stronger.}) 18. Rad1 $16 {[%emt 0:01:05][%cal Od3h7]} Rfd8 {[%emt 0:03:28]} 19. Qc3 {[%emt 0:00:20]} c4 {[%emt 0:00:24]} 20. Be4 {[%emt 0:01:32]} Rab8 {[%emt 0:05:04]} 21. Bd5 {[%emt 0:10:22] White is more active.} Re8 {[%emt 0:01:36]} 22. Qd4 Kh8 23. Bxe6 {[%emt 0:05:12]} Rxe6 {[%emt 0:00:37]} 24. Kh1 {[%emt 0:00:08]} c3 {[%emt 0:05:56]} (24... Qc6 $16 {was called for.}) 25. b4 $18 {[%emt 0:01:50]} (25. bxc3 $6 Rbe8 $14) (25. Qxc3 $6 Qxc3 26. bxc3 Bxa3 $14) 25... Rbe8 {[%emt 0:00:14]} 26. Rd3 {[%emt 0:02:07]} Qe7 {[%emt 0:00:55]} 27. Bg1 {[%emt 0:03:43]} ({But not} 27. Rxc3 $6 Rxe3 28. Rxe3 Qxe3 29. Qxd6 Qxa3) 27... a5 $2 {[%emt 0:01:30]} (27... Bb8 28. Qxc3 (28. Rxc3 h6 $18) 28... h6) 28. f5 {[%emt 0:08:34]} Be5 {[%emt 0:00:09]} 29. Qd7 {[%emt 0:00:05]} Qxd7 {[%emt 0:00:59]} 30. Rxd7 {[%emt 0:00:05]} Rc6 {[%emt 0:01:54]} 31. Rfd1 $2 {[%emt 0:01:49]} ({Resist} 31. bxa5 h5 32. Rfd1 Kh7 $18) (31. b5 $18 Rd6 32. Rxd6 Bxd6 33. Rd1) 31... axb4 $16 {[%emt 0:00:13]} 32. Rd8 {[%emt 0:00:05]} (32. axb4 $16 {Strongly threatening b5.} Ra6 {[#]} 33. Re7 $3 {[%mdl 512]}) 32... Rc8 {[%emt 0:00:03]} (32... Rg8 $1 $14 33. axb4 Ra6) 33. Rxe8+ {[%emt 0:00:05]} Rxe8 {[%emt 0:00:01]} 34. axb4 {[%emt 0:00:06][%cal Ba3b4,Bb4b5,Bb5b6,Bb6b7][%mdl 4128] Endgame KRB-KRB} Kg8 {[%emt 0:00:28]} 35. b5 {[%emt 0:00:33] Hoping for b6.} Rb8 {[%emt 0:01:28][%mdl 8192] A mistake that costs the game.} (35... Ra8 $16 {is more resistant.}) 36. b6 $18 {[%emt 0:00:16]} g6 {[%emt 0:00:23]} 37. fxg6 {[%emt 0:01:00]} hxg6 {[%emt 0:00:05]} 38. Rd7 {[%emt 0:00:05] Black must now prevent g4.} Kf8 {[%emt 0:00:43]} (38... Ra8 $142 39. b7 Ra2 40. Rd8+ Kf7) 39. b7 {[%emt 0:01:14]} Re8 {[%emt 0:00:47]} 40. Bh2 {[%emt 0:00:00] Prevents Bg3. White mates.} Bb8 {[%emt 0:00:00]} 41. Bxb8 {[%emt 0:02:26]} Rxb8 {[%emt 0:00:57]} 42. Rc7 {[%emt 0:00:06] Weighted Error Value: White=0.29 (precise) /Black=0.81} 1-0